[Event "Baku Open 2024"]
[Site "Baku"]
[Date "2024.07.06"]
[Round "8.10"]
[White "Pranav Vijay"]
[Black "Agmanov, Zhandos"]
[Result "1/2-1/2"]
[ECO "A07"]
[WhiteElo "2252"]
[BlackElo "2464"]
[Annotator "RC"]
[PlyCount "148"]
[EventDate "2024.06.29"]
[EventType "swiss"]
[EventCountry "AZE"]
[SourceTitle "playchess.com"]
[Source "ChessBase"]
[SourceQuality "1"]
[TimeControl "5400+30"]

1. Nf3 {[%emt 0:00:02]} Nf6 {[%emt 0:09:46]} 2. g3 {[%emt 0:00:04]} e6 {[%emt 0:00:13]} 3. Bg2 {[%emt 0:00:07]} d5 {[%emt 0:00:03]} 4. O-O {[%emt 0:00:08]} Be7 {[%emt 0:00:03]} 5. d3 {[%emt 0:00:34]} O-O {[%emt 0:00:15]} 6. Bf4 {[%emt 0:00:25]} c5 {[%emt 0:02:36]} 7. e4 {[%emt 0:10:33]} Nc6 {[%emt 0:06:38]} 8. a4 {[%emt 0:08:18]} b6 {[%emt 0:03:50]} 9. Na3 {[%emt 0:00:34]} Bb7 {[%emt 0:02:09]} 10. e5 {[%emt 0:01:22]} Nd7 {[%emt 0:00:11]} 11. Re1 {[%emt 0:00:24]} a6 {[%emt 0:02:39]} 12. c3 {[%emt 0:01:01]} Qc7 {[%emt 0:01:20]} 13. h4 {[%emt 0:01:33]} Rfc8 {[%emt 0:00:41]} 14. h5 {[%emt 0:10:25]} h6 {[%emt 0:00:05]} 15. Nh2 {[%emt 0:06:17]} Qd8 {[%emt 0:00:43]} 16. Ng4 {[%emt 0:04:24]} Bf8 {[%emt 0:03:37]} 17. Bd2 {[%emt 0:03:11]} Rab8 {[%emt 1:04:11]} 18. f4 {[%emt 0:04:42]} Ne7 {[%emt 0:00:00]} 19. Kh2 {[%emt 0:05:06]} Nf5 {[%emt 0:00:00]} 20. Nc2 {[%emt 0:00:55]} d4 {[%emt 0:00:00]} 21. Bxb7 {[%emt 0:02:20]} Rxb7 {[%emt 0:00:00]} 22. c4 {[%emt 0:00:07]} b5 {[%emt 0:00:00]} 23. axb5 {[%emt 0:06:33]} axb5 {[%emt 0:00:00]} 24. Na3 {[%emt 0:00:10]} bxc4 {[%emt 0:00:00]} 25. Nxc4 {[%emt 0:00:26]} Ra8 {[%emt 0:00:00]} 26. Qf3 {[%emt 0:01:45]} Rba7 {[%emt 0:00:00]} 27. Ra3 {[%emt 0:01:09]} Nb6 {[%emt 0:00:00]} 28. Rxa7 {[%emt 0:08:14]} Rxa7 {[%emt 0:00:00]} 29. Ba5 {[%emt 0:00:06]} Qd5 {[%emt 0:00:00]} 30. Qxd5 {[%emt 0:00:17]} Nxd5 {[%emt 0:00:00]} 31. Kg2 {[%emt 0:00:33]} Rb7 {[%emt 0:00:00]} 32. Ra1 {[%emt 0:01:30]} Rb3 {[%emt 0:00:00]} 33. Ra3 {[%emt 0:07:01]} Nfe3+ {[%emt 0:00:00]} 34. Ngxe3 {[%emt 0:00:07]} Nxe3+ {[%emt 0:00:00]} 35. Kf3 {[%emt 0:02:36]} Nxc4 {[%emt 0:00:51]} 36. Rxb3 {[%emt 0:00:04]} Nxa5 {[%emt 0:00:04]} 37. Rb6 {[%emt 0:00:03]} c4 {[%emt 0:01:43]} 38. Ke2 {[%emt 0:00:25]} Be7 {[%emt 0:04:23]} 39. g4 {[%emt 0:09:42]} Bh4 {[%emt 0:03:08]} 40. Ra6 {[%emt 0:02:34]} cxd3+ {[%emt 0:00:25]} 41. Kxd3 {[%emt 0:00:01]} Nb3 {[%emt 0:00:38]} 42. Ra3 {[%emt 0:00:32]} Nc5+ {[%emt 0:00:24]} 43. Kxd4 {[%emt 0:00:59]} Bf2+ {[%emt 0:00:17]} 44. Kc4 {[%emt 0:00:05]} Nd7 {[%emt 0:00:05]} 45. Kb5 {[%emt 0:02:26]} Nb6 {[%emt 0:00:24]} 46. Rf3 {[%emt 0:00:12]} Bg1 {[%emt 0:00:06]} 47. Kc6 {[%emt 0:01:06]} Nd5 {[%emt 0:01:03]} 48. f5 {[%emt 0:00:39]} Bd4 {[%emt 0:01:05]} 49. fxe6 {[%emt 0:00:10]} fxe6 {[%emt 0:00:01]} 50. Kd6 {[%emt 0:00:06]} Bxb2 {[%emt 0:00:22]} 51. Kxe6 {[%emt 0:00:56]} Nb6 {[%emt 0:00:50]} 52. Rb3 {[%emt 0:01:26]} Nc4 {[%emt 0:00:25]} 53. Kf5 {[%emt 0:01:05]} Bxe5 {[%emt 0:00:17]} 54. Rb4 {[%emt 0:00:13]} Kh7 {[%emt 0:01:21]} 55. Rxc4 {[%emt 0:00:05]} Bf6 {[%emt 0:00:10]} 56. Rc6 {[%emt 0:00:06]} Bb2 {[%emt 0:00:31]} 57. Ke6 {[%emt 0:00:35]} Bf6 {[%emt 0:00:15]} 58. Kf7 {[%emt 0:00:38]} Bd4 {[%emt 0:00:21]} 59. Ke6 {[%emt 0:02:00]} Bf6 {[%emt 0:00:04]} 60. Kf5 {[%emt 0:00:06]} Bb2 {[%emt 0:00:33]} 61. g5 {[%emt 0:00:35]} hxg5 {[%emt 0:00:05]} 62. Kxg5 {[%emt 0:00:01]} Bd4 {[%emt 0:00:42]} 63. Re6 {[%emt 0:00:15]} Bb2 {[%emt 0:00:27]} 64. Kf5 {[%emt 0:00:39]} Bc1 {[%emt 0:00:22]} 65. Re2 {[%emt 0:00:20]} Bh6 {[%emt 0:00:40]} 66. Ke6 {[%emt 0:00:29]} Bg5 {[%emt 0:00:41]} 67. Rg2 {[%emt 0:00:08]} Bf6 {[%emt 0:00:55]} 68. Kf5 {[%emt 0:00:17]} Bd4 {[%emt 0:00:52]} 69. Rg4 {[%emt 0:00:16]} Be3 {[%emt 0:00:33]} 70. Rg3 {[%emt 0:01:11]} Bc1 {[%emt 0:00:10]} 71. Ke6 {[%emt 0:00:28]} Bb2 {[%emt 0:00:15]} 72. Kf7 {[%emt 0:00:13]} Be5 {[%emt 0:00:16]} 73. Rg6 {[%emt 0:00:22]} Bd4 {[%emt 0:00:13]} 74. Rg4 {[%emt 0:01:46]} Bc3 {[%emt 0:00:16]} 1/2-1/2

[Event "Baku Open 2024"]
[Site "Baku"]
[Date "2024.07.06"]
[Round "8.11"]
[White "Suleymanli, Aydin"]
[Black "Aleksandrov, Aleksej"]
[Result "1-0"]
[ECO "C65"]
[WhiteElo "2626"]
[BlackElo "2405"]
[Annotator "TA"]
[PlyCount "93"]
[EventDate "2024.06.29"]
[EventType "swiss"]
[EventCountry "AZE"]
[SourceTitle "playchess.com"]
[Source "ChessBase"]
[SourceQuality "1"]
[TimeControl "5400+30"]

{[%evp 26,93,51,44,60,59,62,60,73,64,123,106,97,107,146,141,208,196,200,177,196,172,231,217,301,301,313,291,314,250,353,296,348,385,385,357,452,341,417,408,425,408,437,439,550,496,628,595,626,617,666,662,1103,1091,1082,1113,1052,918,914,904,1086,994,1107,923,2647,2647,2564,2008,2687,2567]} 1. e4 {[%emt 0:01:18]} e5 {[%emt 0:02:03]} 2. Nf3 {[%emt 0:00:04]} Nc6 {[%emt 0:00:04]} 3. Bb5 {[%emt 0:00:05]} Nf6 {[%emt 0:00:04]} 4. d3 {[%emt 0:00:03]} Bc5 {[%emt 0:00:04]} 5. c3 {[%emt 0:00:06]} O-O {[%emt 0:00:10]} 6. O-O {[%emt 0:00:11] C65: Ruy Lopez: Berlin Defence (3...Nf6), unusual lines and 4 0-0 Bc5.} Re8 {[%emt 0:00:21]} 7. b4 {[%emt 0:00:23]} Bf8 {[%emt 0:03:11]} 8. Bc4 {[%emt 0:00:21]} d6 {[%emt 0:04:44]} 9. Ng5 {[%emt 0:01:33]} Re7 {[%emt 0:00:07]} 10. Qb3 {[%emt 0:02:06]} Qe8 {[%emt 0:04:31]} 11. a4 {[%emt 0:03:34]} h6 {[%emt 0:03:48]} 12. Nf3 {[%emt 0:00:05]} Be6 {[%emt 0:00:16]} 13. Bxe6 {[%emt 0:01:04]} Rxe6 {[%emt 0:00:04]} 14. a5 $146 {[%emt 0:00:46]} ({Predecessor:} 14. Nbd2 Rd8 15. Nc4 d5 16. exd5 Rxd5 17. b5 Nd8 18. d4 exd4 19. cxd4 c6 20. b6 axb6 21. Nxb6 {½-½ Rasmussen,A (2532)-Antonsen,M (2470) DEN-ch Svendborg 2015 (1)}) 14... a6 {[%emt 0:01:28]} 15. c4 {[%emt 0:01:50]} Nh5 {[%emt 0:02:17]} 16. Nc3 {[%emt 0:02:50]} Qd7 {[%emt 0:04:26]} 17. Nd5 {[%emt 0:03:59]} g6 {[%emt 0:02:13]} ({Black should play} 17... Ne7 $14) 18. Be3 {[%emt 0:02:25]} Ne7 {[%emt 0:04:51]} 19. b5 {[%emt 0:03:02]} Nxd5 {[%emt 0:09:05]} 20. cxd5 {[%emt 0:05:20]} Re7 {[%emt 0:02:41]} (20... Ree8 $16 {was worth a try.}) 21. bxa6 $18 {[%emt 0:00:50]} bxa6 {[%emt 0:00:50]} 22. Rfc1 {[%emt 0:03:40]} f5 {[%emt 0:00:45]} 23. Qb7 {[%emt 0:05:35]} Qd8 {[%emt 0:06:17]} (23... Qc8 {is a better defense.} 24. Qxc8 Rxc8) 24. Rc6 $18 {[%emt 0:01:44]} f4 {[%emt 0:02:18]} 25. Ba7 {[%emt 0:04:31]} (25. Rxa6 Rxa6 26. Qxa6 fxe3 27. fxe3 Qb8 $17) 25... g5 {[%emt 0:04:59]} 26. Rac1 {[%emt 0:02:02]} (26. Rxa6 Rg7 27. h3 Kh8 $18) 26... g4 {[%emt 0:00:13]} 27. Ne1 {[%emt 0:00:46]} g3 {[%emt 0:10:56]} (27... f3 {might work better.} 28. g3 (28. Rxa6 Nf4 $16) 28... Nf6 29. Qxa6 Ne8) 28. Nf3 {[%emt 0:07:04]} (28. Rxa6 c5 29. dxc6 (29. Qb6 gxf2+ 30. Kxf2 Qc8 $17) 29... Rxb7 (29... gxf2+ 30. Kxf2 Rxb7 31. cxb7 $16) 30. cxb7 Rxa7 (30... gxf2+ 31. Kxf2 d5 32. Kg1 $18) 31. Rxa7 Qb8 $16) (28. Qxa6 Rg7 $18) 28... Qe8 {[%emt 0:03:53]} 29. Rxc7 {[%emt 0:02:34]} (29. Rxa6 c5 30. dxc6 Rxb7 31. cxb7 Be7 $18) 29... Rxc7 {[%emt 0:00:05]} 30. Rxc7 {[%emt 0:00:24]} Qa4 {[%emt 0:00:51]} 31. Rc1 {[%emt 0:00:23]} (31. Qxa8 $2 {gets mated.} Qd1+) 31... Qa3 {[%emt 0:06:09]} 32. Re1 {[%emt 0:01:19]} Re8 {[%emt 0:05:27]} 33. Qxa6 {[%emt 0:00:23]} Re7 {[%emt 0:01:35]} 34. Bb6 {[%emt 0:00:37]} Rg7 {[%emt 0:00:13]} 35. Qb5 {[%emt 0:01:18]} Nf6 {[%emt 0:00:21]} 36. hxg3 {[%emt 0:03:55]} fxg3 {[%emt 0:00:04]} 37. fxg3 {[%emt 0:00:06]} Rxg3 {[%emt 0:00:24]} 38. Rb1 {[%emt 0:01:19]} Qa2 {[%emt 0:03:14]} 39. Qb2 {[%emt 0:00:32]} Qa4 {[%emt 0:00:04]} 40. Ra1 {[%emt 0:02:03]} Qe8 {[%emt 0:00:04]} 41. Qf2 {[%emt 0:01:41]} Rg7 {[%emt 0:01:02]} 42. a6 {[%emt 0:01:24]} Ng4 {[%emt 0:01:59]} 43. Qb2 {[%emt 0:00:15]} Qa8 {[%emt 0:00:09]} 44. Qc3 {[%emt 0:00:34]} Ra7 {[%emt 0:01:59]} 45. Bxa7 {[%emt 0:00:16]} Qxa7+ {[%emt 0:00:06]} 46. d4 {[%emt 0:00:02]} h5 {[%emt 0:00:33]} 47. Qb2 {[%emt 0:00:52]} 1-0

[Event "Baku Open 2024"]
[Site "Baku"]
[Date "2024.07.06"]
[Round "8.12"]
[White "Jubin Jimmy"]
[Black "Muradli, Mahammad"]
[Result "0-1"]
[ECO "A37"]
[WhiteElo "2452"]
[BlackElo "2575"]
[Annotator "TA"]
[PlyCount "108"]
[EventDate "2024.06.29"]
[EventType "swiss"]
[EventCountry "AZE"]
[SourceTitle "playchess.com"]
[Source "ChessBase"]
[SourceQuality "1"]
[TimeControl "5400+30"]

{[%evp 35,108,13,18,0,6,0,0,0,0,0,0,0,0,0,0,0,0,0,7,0,14,0,0,0,57,0,0,0,0,-17,4,0,9,-127,0,0,0,0,0,0,0,0,0,-233,-221,-219,-215,-211,-188,-185,-198,-510,-510,-560,-543,-781,-764,-2032,-2225,-2292,-2254,-5156,-5165,-5107,-5073,-4818,-4810,-2164,-2855,-2199,-1737,-29961,-29953,-5879,-5612]} 1. c4 {[%emt 0:00:46]} c5 {[%emt 0:01:27]} 2. g3 {[%emt 0:00:15]} g6 {[%emt 0:00:18]} 3. Bg2 {[%emt 0:00:26]} Bg7 {[%emt 0:00:09]} 4. Nc3 {[%emt 0:00:10]} Nc6 {[%emt 0:00:05]} 5. Nf3 {[%emt 0:00:15]} d6 {[%emt 0:00:07]} 6. O-O {[%emt 0:00:52]} Nh6 $1 {[%emt 0:00:29][%mdl 4] 6...Nh6 is the recent fashion.} 7. d3 {[%emt 0:04:54]} O-O {[%emt 0:00:42]} 8. Bd2 {[%emt 0:02:47] A37: Symmetrical English vs ...g6: 4 Bg2 Bg7 5 Nf3.} Qd7 $5 {[%emt 0:01:26][%mdl 4] A promising side line.} 9. a3 {[%emt 0:02:31]} Nf5 {[%emt 0:24:46]} 10. Rb1 {[%emt 0:04:12]} b6 {[%emt 0:01:23]} 11. b4 {[%emt 0:02:23]} Bb7 {[%emt 0:00:36]} 12. Ne4 {[%emt 0:04:16]} Rac8 {[%emt 0:03:07]} 13. Qa4 $146 {[%emt 0:16:06]} ({Predecessor:} 13. bxc5 dxc5 14. a4 Ba8 15. Bh3 e6 16. Bg2 Nd6 17. Nxd6 Qxd6 18. Ng5 Qe7 19. Ne4 {½-½ Zpevak,P (2402)-Cvek,R (2494) CZE-chT1E 1011 2010 (1.1)}) 13... Ba8 {[%emt 0:05:03]} 14. Bc3 {[%emt 0:09:00]} Rfd8 {[%emt 0:07:28]} 15. Bxg7 {[%emt 0:02:32]} Kxg7 {[%emt 0:00:04]} 16. Nc3 {[%emt 0:05:37]} e6 {[%emt 0:08:28]} 17. e3 {[%emt 0:04:55]} h5 {[%emt 0:02:16]} 18. Qc2 {[%emt 0:04:52]} Qe7 {[%emt 0:10:51]} 19. Ne4 {[%emt 0:03:04]} f6 {[%emt 0:01:26]} 20. Qb2 {[%emt 0:03:10]} Ne5 {[%emt 0:05:14]} 21. Nxe5 {[%emt 0:01:23]} dxe5 {[%emt 0:01:52]} 22. bxc5 {[%emt 0:01:01]} bxc5 {[%emt 0:01:31]} 23. Rfd1 {[%emt 0:02:25]} Bxe4 {[%emt 0:04:06]} 24. Bxe4 {[%emt 0:00:53]} Nd6 {[%emt 0:00:03]} 25. Qc2 {[%emt 0:03:06]} h4 {[%emt 0:01:37]} 26. Bg2 {[%emt 0:02:15]} f5 {[%emt 0:04:25]} 27. Qe2 {[%emt 0:06:05]} Qf6 {[%emt 0:00:59]} 28. Rb3 {[%emt 0:02:13]} g5 {[%emt 0:02:09]} 29. e4 {[%emt 0:01:36]} f4 {[%emt 0:05:51]} (29... g4 $11) 30. Qg4 {[%emt 0:00:52]} ({White should try} 30. gxf4 $14 gxf4 31. Kh1) 30... Rh8 {[%emt 0:00:42]} 31. Rdb1 {[%emt 0:02:27]} Rcf8 {[%emt 0:01:15]} 32. R3b2 {[%emt 0:03:50]} Rf7 {[%emt 0:05:15]} 33. Bh3 {[%emt 0:02:41]} Rh6 {[%emt 0:00:24]} 34. Rb8 {[%emt 0:01:01]} ({But not} 34. gxh4 Rxh4 35. Qxe6 f3 $17) (34. a4 $11 {keeps the balance.}) 34... hxg3 {[%emt 0:01:01]} ({Black should play} 34... fxg3 $17 35. fxg3 Qf2+ 36. Kh1 Qf3+ 37. Qxf3 Rxf3) 35. hxg3 {[%emt 0:00:31]} fxg3 {[%emt 0:00:41]} 36. Qxg3 {[%emt 0:00:37]} Qf4 {[%emt 0:00:42]} 37. Kg2 {[%emt 0:01:02]} Kf6 $1 {[%emt 0:00:18]} 38. Qg4 {[%emt 0:01:28]} Ke7 {[%emt 0:00:34]} 39. R1b2 $2 {[%emt 0:00:40]} (39. Qxf4 $11 gxf4 40. Rg8) 39... Rfh7 $19 {[%emt 0:00:29]} 40. Qxf4 {[%emt 0:00:30]} gxf4 {[%emt 0:00:38]} ({Much less strong is} 40... exf4 41. Bg4 Rh2+ 42. Kf3 $15) 41. Bg4 {[%emt 0:00:27] [#]} Rg7 $1 {[%emt 0:00:03]} 42. Kf3 {[%emt 0:00:49]} Rh4 {[%emt 0:00:11]} 43. Ra8 $2 {[%emt 0:00:22]} (43. d4 {nothing else works.} cxd4 (43... Rhxg4 44. dxc5 Nxc4 45. R2b7+ Kf6 46. Rf8+ Kg6 47. c6 $11) 44. c5) 43... Rgxg4 $19 {[%emt 0:01:02]} 44. Rxa7+ {[%emt 0:00:35]} Kf6 {[%emt 0:00:02]} 45. Ra6 {[%emt 0:00:10]} Nf7 {[%emt 0:00:03]} 46. Rb7 {[%emt 0:00:37]} Ng5+ {[%emt 0:00:50]} 47. Ke2 {[%emt 0:00:01]} Rg2 {[%emt 0:00:40]} 48. Ra8 {[%emt 0:00:14]} Rhh2 {[%emt 0:00:36]} 49. Rf8+ {[%emt 0:00:15]} Kg6 {[%emt 0:00:01]} 50. Rg8+ {[%emt 0:00:12]} Kh5 {[%emt 0:00:14]} 51. Rh8+ {[%emt 0:00:23]} Kg4 {[%emt 0:00:07]} 52. Rxh2 {[%emt 0:00:02]} Rxh2 {[%emt 0:00:12]} 53. Rg7 {[%emt 0:01:15]} f3+ {[%emt 0:00:10]} 54. Ke3 {[%emt 0:00:08]} Rh1 {[%emt 0:00:06]} 0-1

[Event "Baku Open 2024"]
[Site "Baku"]
[Date "2024.07.06"]
[Round "8.13"]
[White "Asadli, Vugar"]
[Black "Suleimen, Ergali"]
[Result "1-0"]
[ECO "B70"]
[WhiteElo "2560"]
[BlackElo "2254"]
[Annotator "TA"]
[PlyCount "87"]
[EventDate "2024.06.29"]
[EventType "swiss"]
[EventCountry "AZE"]
[SourceTitle "playchess.com"]
[Source "ChessBase"]
[SourceQuality "1"]
[TimeControl "5400+30"]

{[%evp 25,87,-22,-14,-6,0,-18,0,-12,0,0,0,-48,119,104,113,123,108,119,101,77,221,211,158,97,293,66,201,16,16,15,16,11,17,31,33,22,189,22,31,18,224,229,261,275,392,352,385,354,517,516,542,501,495,518,512,498,562,579,545,572,562,564,550,548]} 1. e4 {[%emt 0:00:04]} c5 {[%emt 0:00:19]} 2. Nf3 {[%emt 0:00:03]} d6 {[%emt 0:00:23]} 3. d4 {[%emt 0:00:06]} cxd4 {[%emt 0:00:12]} 4. Nxd4 {[%emt 0:00:04]} Nf6 {[%emt 0:00:12]} 5. Nc3 {[%emt 0:00:06]} g6 {[%emt 0:01:23]} 6. g3 {[%emt 0:04:06]} Bg7 {[%emt 0:01:26]} 7. Bg2 {[%emt 0:00:05]} O-O {[%emt 0:00:28]} 8. O-O {[%emt 0:00:03]} Nc6 {[%emt 0:00:53]} 9. Nde2 {[%emt 0:00:16]} Rb8 {[%emt 0:05:01]} 10. a4 {[%emt 0:03:49]} a6 {[%emt 0:01:05]} 11. h3 {[%emt 0:01:36]} b5 {[%emt 0:04:52]} 12. axb5 {[%emt 0:00:26]} axb5 {[%emt 0:00:05]} 13. Nd5 {[%emt 0:05:35]} Nd7 {[%emt 0:01:27]} 14. c3 {[%emt 0:01:44]} e6 {[%emt 0:03:35]} 15. Ne3 {[%emt 0:08:54]} Nc5 {[%emt 0:26:23]} 16. b4 {[%emt 0:13:47] The position is equal.} Na4 {[%emt 0:01:12]} 17. Ra3 {[%emt 0:00:04]} Qc7 {[%emt 0:07:35]} 18. h4 {[%emt 0:01:53]} (18. f4 $11 {feels stronger.}) 18... f5 $2 {[%emt 0:08:24]} (18... Ne5 $15 {keeps the upper hand.}) 19. exf5 $16 {[%emt 0:05:29]} gxf5 {[%emt 0:00:08] [#]} 20. Nd5 $1 {[%emt 0:00:55][%mdl 512]} Qd7 {[%emt 0:05:14][%cal Oc8b7]} 21. Ndf4 $1 {[%emt 0:01:11][%cal Of4e6]} Ne7 {[%emt 0:03:35]} 22. Nh5 {[%emt 0:08:35] Hoping for Nxg7.} Nb6 {[%emt 0:07:25]} (22... Be5 $16) 23. Nxg7 $18 {[%emt 0:09:53]} Kxg7 {[%emt 0:00:05]} 24. Nf4 {[%emt 0:00:04] White is more active.} (24. Nd4 $142 $1 {[%cal Rd4e6]} Rf7 25. Bg5) 24... Nc4 $2 {[%emt 0:03:37]} (24... e5 $16 {was called for.}) 25. Ra2 $2 {[%emt 0:07:53]} (25. Nxe6+ $1 $18 Qxe6 26. Ra7) 25... Kh8 {[%emt 0:03:07]} (25... e5 $14) 26. Qh5 $2 {[%emt 0:02:25]} (26. Nxe6 $1 $18 Qxe6 27. Re1) 26... e5 $11 {[%emt 0:02:54]} 27. Nh3 {[%emt 0:04:25]} Ng8 $1 {[%emt 0:03:04]} 28. Bh6 {[%emt 0:03:50] Prevents Qg7} (28. Bg5 {feels hotter.} Bb7 29. Ra7 Rfc8 30. Rfa1) 28... Rf6 {[%emt 0:02:46]} 29. Bg5 $36 {[%emt 0:01:12][%mdl 2048] White is more active. This pair of bishops is nice.} Rg6 {[%emt 0:00:04][%cal Of5f4]} 30. Rfa1 {[%emt 0:01:10]} Bb7 $2 {[%emt 0:01:31] [#]} (30... d5 $1 $11) 31. Ra7 $2 {[%emt 0:00:14]} (31. Bxb7 $1 $18 {Strongly threatening Bd5.} Rxb7 32. Ra8) 31... d5 $1 {[%emt 0:00:03]} 32. Rd1 {[%emt 0:00:23][%cal Od1d5] And now Rxd5! would win.} Nb6 {[%emt 0:02:06] [#]} (32... Rd6 $1 $11 {and Black stays safe.}) 33. Qe2 $1 $18 {[%emt 0:01:44] Black is weak on the dark squares} Qe8 {[%emt 0:01:54]} 34. Nf4 {[%emt 0:00:30]} Rd6 {[%emt 0:00:58]} (34... Rg7 $142) 35. Nd3 {[%emt 0:00:29]} Nc4 {[%emt 0:00:43]} 36. Re1 {[%emt 0:01:30][%cal Rd3e5]} Re6 {[%emt 0:03:40]} (36... e4 $142 37. Bf4 d4 38. Bxd6 Nxd6) 37. Nc5 {[%emt 0:00:31] White is clearly winning.} Rb6 {[%emt 0:00:20][%cal Be6b6,Bb6b7,Bb7c7,Bc7c4,Bc4c3][%mdl 32]} 38. Rxb7 {[%emt 0:00:32]} R8xb7 {[%emt 0:00:07]} 39. Nxb7 {[%emt 0:00:03]} ({Less strong is} 39. Bxd5 Rf7 40. Ra1 (40. Bxf7 Qxf7 41. Rd1 Rc6 $18) 40... Rg7) 39... Rxb7 {[%emt 0:00:04]} 40. Bxd5 {[%emt 0:00:02]} Rc7 {[%emt 0:01:36]} 41. Bxc4 {[%emt 0:00:16]} Rxc4 {[%emt 0:00:05]} 42. Qxe5+ {[%emt 0:00:03]} Qxe5 {[%emt 0:00:05]} 43. Rxe5 {[%emt 0:00:04]} Rxc3 {[%emt 0:00:05]} 44. Rxf5 {[%emt 0:00:04] Weighted Error Value: White=0.24 (precise) /Black=0.54.  Loses game:     	---       	Black=3      Missed win:     	White=3     	---        Mistake:       	White=2     	Black=5      OK:         	White=16    	Black=6      Best:        	White=1     	Black=2      Strong:       	White=2     	Black=2} 1-0

[Event "Baku Open 2024"]
[Site "Baku"]
[Date "2024.07.06"]
[Round "8.14"]
[White "Soham Kamotra"]
[Black "Yeletsky, Ivan"]
[Result "0-1"]
[ECO "A36"]
[WhiteElo "2388"]
[BlackElo "2498"]
[Annotator "TA"]
[PlyCount "80"]
[EventDate "2024.06.29"]
[EventType "swiss"]
[EventCountry "AZE"]
[SourceTitle "playchess.com"]
[Source "ChessBase"]
[SourceQuality "1"]
[TimeControl "5400+30"]

{[%evp 10,80,20,9,19,7,16,16,19,12,12,4,2,-4,5,0,-3,-28,22,0,20,26,35,27,11,18,4,-47,-60,-65,-60,-52,-56,-34,25,24,15,0,0,0,0,0,0,0,0,-22,0,0,-8,-282,-268,-293,-294,-300,-253,-343,-353,-675,-675,-675,-647,-1945,-1348,-29986,-29987,-29987,-29988,-29988,-29989,-29989,-29990,-29990,-29991]} 1. c4 {[%emt 0:00:01]} c5 {[%emt 0:00:16]} 2. g3 {[%emt 0:00:08]} g6 {[%emt 0:00:13]} 3. Bg2 {[%emt 0:00:05]} Bg7 {[%emt 0:00:10]} 4. Nc3 {[%emt 0:00:06]} Nc6 {[%emt 0:00:13]} 5. a3 {[%emt 0:00:06]} d6 {[%emt 0:05:07]} 6. Rb1 {[%emt 0:00:08]} e6 {[%emt 0:04:01]} 7. b4 {[%emt 0:00:16]} Nge7 {[%emt 0:00:13]} 8. Nf3 {[%emt 0:00:18]} b6 {[%emt 0:03:49] The position is equal.} 9. O-O {[%emt 0:05:42]} Bb7 {[%emt 0:01:02]} 10. Bb2 {[%emt 0:01:57]} cxb4 {[%emt 0:10:48]} 11. axb4 {[%emt 0:00:14]} Nxb4 {[%emt 0:00:32]} 12. Qb3 {[%emt 0:04:33] And now Nb5 would win.} Nbc6 {[%emt 0:03:23]} 13. Ne4 {[%emt 0:01:47]} e5 {[%emt 0:03:54] [#]} (13... O-O $142 $1) 14. c5 $1 {[%emt 0:19:50]} dxc5 {[%emt 0:04:45]} 15. Nxc5 {[%emt 0:01:38]} bxc5 {[%emt 0:01:17]} 16. Qxb7 {[%emt 0:00:07][%cal Of3e5] Threatens to win with Nxe5!} Rb8 {[%emt 0:01:02]} 17. Qa6 {[%emt 0:00:05]} O-O {[%emt 0:01:41][%cal Ob8b2]} 18. Ba3 {[%emt 0:01:58]} ({Better is} 18. Bc3 $11) 18... e4 $15 {[%emt 0:03:48]} 19. Ng5 {[%emt 0:04:06]} Rxb1 {[%emt 0:00:48]} 20. Rxb1 {[%emt 0:00:05]} Qxd2 {[%emt 0:00:18]} 21. Bxe4 {[%emt 0:20:46]} Qa2 {[%emt 0:10:55]} (21... Qxg5 $15 22. Bxc6 Qf5) 22. Rb7 $11 {[%emt 0:12:40][%cal Og1g2]} h6 {[%emt 0:22:06]} 23. Bxc6 {[%emt 0:01:49]} Nxc6 {[%emt 0:00:29]} 24. Qxc6 {[%emt 0:00:11]} Qxa3 {[%emt 0:04:37]} 25. Ne4 {[%emt 0:00:14][%cal Oe2e3]} a5 {[%emt 0:01:23]} 26. Kg2 {[%emt 0:04:33]} Qa2 {[%emt 0:01:26] Wards off Qd5} 27. e3 {[%emt 0:01:11][%cal Ob7a7]} a4 {[%emt 0:00:40]} 28. Ra7 {[%emt 0:03:21]} a3 {[%emt 0:00:13]} 29. Qxc5 $2 {[%emt 0:00:04][%mdl 8192] This move loses the game for White.} (29. Nxc5 $11 Rd8 30. Qc7) 29... Qe6 $19 {[%emt 0:00:51]} 30. Ra4 {[%emt 0:13:31]} a2 {[%emt 0:00:53]} 31. Nc3 {[%emt 0:00:04]} Qb3 {[%emt 0:03:47]} 32. Qa3 {[%emt 0:02:55]} Qb7+ {[%emt 0:04:41]} ({Much less strong is} 32... Qxc3 33. Qxc3 Bxc3 34. Rxa2) 33. Kg1 $2 {[%emt 0:01:49]} (33. e4 Bxc3 34. Qxa2) 33... Bxc3 {[%emt 0:00:47]} 34. Qxa2 {[%emt 0:00:03]} Rd8 {[%emt 0:00:15][%cal Rd8d1]} 35. e4 {[%emt 0:01:03]} Rd2 {[%emt 0:02:47] Repels Qc2} 36. Qa3 {[%emt 0:00:31] [#]} Qb6 $1 {[%emt 0:01:24] Black mates.} 37. Ra8+ {[%emt 0:00:21]} Kh7 {[%emt 0:00:09]} 38. Qa7 {[%emt 0:00:26]} Qb1+ {[%emt 0:00:12]} 39. Kg2 {[%emt 0:00:13]} Qxe4+ {[%emt 0:00:09]} 40. Kh3 {[%emt 0:00:05]} Qf5+ {[%emt 0:00:16] Weighted Error Value: White=0.67/Black=0.07 (flawless) .  Loses game:     	White=1     	---        Mistake:       	White=2     	Black=2      Inaccurate:     	White=1     	---        OK:         	White=12    	Black=8      Best:        	White=1     	Black=8} 0-1